bitfinex-derivatives/quotes_ETHF0:USTF0_20250709
["timestamp","ask_amount","ask_price","bid_price","bid_amount"]
[1752103168179,26.302,2779.7,2779.6,1.20683467]
[1752103168575,1.648,2779.7,2779.6,1.83093467]
[1752103168773,26.309,2779.7,2779.6,1.20683467]
[1752103168969,26.309,2779.7,2779.6,1.83093467]
[1752103169472,28.01295,2779.7,2779.6,1.83093467]
[1752103169674,28.01295,2779.7,2779.6,0.48756467]
[1752103169878,31.58077969,2779.7,2779.6,0.48756467]
[1752103170877,30.57784605,2779.7,2779.6,0.48756467]
[1752103174981,30.57784605,2779.7,2779.6,1.20683467]
[1752103177076,29.85859605,2779.7,2779.6,1.20683467]
[1752103177274,29.85859605,2779.7,2779.6,1.83093467]
[1752103177476,2.95859605,2779.7,2779.6,1.83093467]
[1752103177681,27.60059605,2779.7,2779.6,1.83093467]
[1752103177978,27.59759605,2779.7,2779.6,2.33324384]
[1752103178275,1.93299605,2779.7,2779.6,2.33324384]
[1752103178474,25.2654,2779.7,2779.6,2.33324384]
[1752103178974,0.6224,2779.7,2779.6,2.33324384]
[1752103179186,3.92685,2780.5,2780.4,0.71907]
[1752103179381,5.87210317,2780.5,2780.4,1.70894384]
[1752103179572,30.52010317,2780.5,2780.4,0.98987384]
[1752103179778,32.76640317,2780.5,2780.4,0.98987384]
[1752103180181,37.76640317,2780.5,2780.4,1.00814011]
[1752103180382,32.76140317,2780.5,2780.4,1.00814011]
[1752103180580,33.78910317,2780.5,2780.4,1.00814011]
[1752103181884,0.71909,2780.3,2780.2,0.71911]
[1752103182083,29.02746238,2780.3,2780.2,1.72618224]
[1752103182283,30.33361555,2780.3,2780.2,1.72618224]
[1752103182485,31.63861555,2780.3,2780.2,1.72618224]
[1752103182979,6.99961555,2780.3,2780.2,1.72618224]
[1752103183184,30.91452555,2780.3,2780.2,1.72618224]
[1752103184283,30.91352555,2780.3,2780.2,1.72618224]
[1752103184487,30.91352555,2780.3,2780.2,2.34978224]
[1752103184676,6.28052555,2780.3,2780.2,2.34962485]
[1752103184880,31.63061555,2780.3,2780.2,2.34948237]
[1752103185180,6.99961555,2780.3,2780.2,2.34948237]
[1752103185377,31.62861555,2780.3,2780.2,2.34948237]
[1752103185888,31.62861555,2780.3,2780.2,1.00677237]
[1752103186589,31.62861555,2780.3,2780.2,1.72589237]
[1752103187088,26.57125317,2780.3,2780.2,2.34949237]
[1752103187792,27.55945317,2780.3,2780.2,2.34949237]
[1752103188589,26.57125317,2780.3,2780.2,2.34949237]
[1752103188786,25.93015317,2780.3,2780.2,2.34949237]
[1752103189288,4.95454,2780.5,2780.4,0.71907]
[1752103189289,1.0277,2780.5,2780.4,0.71907]
[1752103189481,27.59153766,2780.5,2780.4,1.34267]
[1752103189786,2.97153766,2780.5,2780.4,0.71907]
[1752103189987,27.59253766,2780.5,2780.4,1.34267]
[1752103190388,27.59253766,2780.5,2780.4,1.21841697]
[1752103190687,28.58073766,2780.5,2780.4,2.33539009]
[1752103191287,27.59253766,2780.5,2780.4,2.33539009]
[1752103191486,27.59253766,2780.5,2780.4,2.3354214]
[1752103192088,3.69057766,2780.5,2780.4,2.3354214]
[1752103192288,28.30457766,2780.5,2780.4,2.3354214]
[1752103192793,29.30675476,2780.5,2780.4,2.3354214]
[1752103192994,30.29495476,2780.5,2780.4,2.3354214]
[1752103193190,29.30675476,2780.5,2780.4,2.3354214]
[1752103193686,28.30457766,2780.5,2780.4,2.3354214]
[1752103193990,29.30675476,2780.5,2780.4,2.3354214]
[1752103194192,30.29495476,2780.5,2780.4,2.3354214]
[1752103194489,29.30675476,2780.5,2780.4,2.32632385]
[1752103194993,28.58771476,2780.5,2780.4,2.32632385]
[1752103196092,29.30675476,2780.5,2780.4,2.32632385]
[1752103197092,1.30473766,2780.5,2780.4,1.70272385]
[1752103197391,25.2671,2780.5,2780.4,2.32883549]
[1752103197587,25.2671,2780.5,2780.4,1.83291942]
[1752103198383,25.2671,2780.5,2780.4,1.34267]
[1752103200093,0.6391,2780.5,2780.4,1.34267]
[1752103200287,25.2641,2780.5,2780.4,1.34267]
[1752103201396,24.625,2780.5,2780.4,1.34267]
[1752103201599,25.2641,2780.5,2780.4,1.34267]
[1752103203197,25.2641,2780.5,2780.4,0.71907]
[1752103203494,26.2523,2780.5,2780.4,0.71907]
[1752103203695,25.2641,2780.5,2780.4,1.34267]
[1752103205400,25.2641,2780.5,2780.4,0.71907]
[1752103205897,25.2641,2780.5,2780.4,1.34267]
[1752103207797,29.47,2780.5,2780.1,1.0018]
[1752103208000,1.0021771,2780.3,2780.2,0.71909]
[1752103208305,26.91453902,2780.3,2780.2,0.71909]
[1752103208594,0.71917,2780.1,2780.0,0.71913]
[1752103208793,25.6161771,2780.1,2780.0,1.34273]
[1752103209001,26.91453902,2780.1,2780.0,1.34273]
[1752103209298,26.91453902,2780.1,2780.0,1.32873]
[1752103209502,3.23501624,2780.8,2780.6,0.71902]
[1752103209699,28.01349,2780.7,2780.6,0.71902]
[1752103211301,0.71906,2780.6,2780.5,0.71902]
[1752103211496,0.71908,2780.5,2780.4,0.71905]
[1752103211699,26.3492571,2780.5,2780.4,0.71905]
[1752103212396,0.71912,2780.3,2780.2,0.71911]
[1752103212597,29.5520971,2780.3,2780.2,0.71911]
[1752103212993,0.71917,2780.1,2780.0,0.71915]
[1752103213194,26.96627,2780.1,2780.0,0.71915]
[1752103213396,27.9684471,2780.1,2780.0,0.71915]
[1752103213597,0.7192,2780.0,2779.9,0.71918]
[1752103213798,0.71922,2779.8,2779.7,0.71922]
[1752103214005,25.97722,2779.8,2779.7,0.71922]
[1752103214203,26.97532,2779.8,2779.7,0.71922]
[1752103214408,28.22002,2779.8,2779.7,0.71922]
[1752103215499,29.2221971,2779.8,2779.7,0.71922]
[1752103216293,28.5029771,2779.8,2779.7,0.71922]
[1752103216493,27.5048771,2779.8,2779.7,1.32882]
[1752103216798,26.2601771,2779.8,2779.7,0.71922]
[1752103216998,26.2601771,2779.8,2779.7,1.32882]
[1752103217798,26.9793971,2779.8,2779.7,1.32882]
[1752103218004,27.9774971,2779.8,2779.7,1.32882]
[1752103218905,27.2582771,2779.8,2779.7,1.32882]
[1752103219107,27.2592771,2779.8,2779.7,1.32882]
[1752103219707,27.9784971,2779.8,2779.7,1.32882]
[1752103220402,2.3483971,2779.8,2779.7,1.32882]
[1752103220610,25.96922,2779.8,2779.7,1.32882]
[1752103220808,27.9694971,2779.8,2779.7,1.32882]
[1752103221009,27.9694971,2779.8,2779.5,0.71927]
[1752103221010,0.71931,2779.6,2779.5,0.71927]
[1752103221211,26.9714871,2779.6,2779.5,0.71927]
[1752103221508,27.9695871,2779.6,2779.5,1.3289]
[1752103221709,0.71933,2779.5,2779.4,0.71933]
[1752103221913,2.42673,2779.5,2779.4,0.71933]
[1752103222211,4.73603,2779.5,2779.4,0.71933]
[1752103222403,4.73603,2779.5,2779.1,0.9813]
[1752103222404,0.71937,2779.4,2779.1,0.9813]
[1752103222607,0.71937,2779.4,2779.1,0.7194]
[1752103222608,2.3485871,2779.2,2779.1,0.7194]
[1752103222911,3.3466871,2779.2,2779.1,0.7194]
[1752103223309,3.3466871,2779.2,2779.1,1.329]
[1752103225712,2.3485871,2779.2,2779.1,1.329]
[1752103225911,3.3466871,2779.2,2779.1,1.329]
[1752103232016,2.6272771,2779.2,2779.1,1.329]
[1752103232217,3.3466571,2779.2,2779.1,1.329]
[1752103232612,2.6272771,2779.2,2779.1,1.329]
[1752103233014,0.627,2779.2,2779.1,1.329]
[1752103233415,0.71938,2779.3,2779.2,0.71935]
[1752103233713,25.96635,2779.3,2779.2,0.71935]
[1752103233918,25.96635,2779.3,2779.2,1.70795]
[1752103234118,25.96635,2779.3,2779.2,2.31755]
[1752103235718,25.96635,2779.3,2779.2,1.32895]
[1752103235719,26.96445,2779.3,2779.2,1.32895]
[1752103236520,0.71938,2779.2,2779.1,0.71939]
[1752103236714,4.6726571,2779.2,2779.1,0.71939]
[1752103239221,0.71943,2779.1,2779.0,0.71941]
[1752103239422,26.32493,2779.1,2779.0,0.71941]
[1752103239623,27.86003,2779.1,2779.0,0.71941]
[1752103239817,0.71951,2778.8,2778.7,0.71947]
[1752103240122,25.97201,2778.8,2778.7,1.36407]
[1752103240321,0.71951,2778.7,2778.6,1.78823]
[1752103240626,0.71961,2778.4,2778.3,0.71958]
[1752103240820,0.71951,2778.7,2778.6,0.71953]
[1752103241125,25.97201,2778.7,2778.6,1.36413]
[1752103241532,0.7194,2779.1,2779.0,0.7194]
[1752103241723,27.29484356,2779.1,2779.0,1.364]
[1752103242526,25.94194356,2779.1,2779.0,1.364]
[1752103242727,26.57244356,2779.1,2779.0,1.364]
[1752103242927,27.29184356,2779.1,2779.0,1.364]
[1752103243322,26.66034356,2779.1,2779.0,1.364]
[1752103243625,25.94294356,2779.1,2779.0,1.364]
[1752103244028,25.94294356,2779.1,2779.0,2.6982]
[1752103244329,24.654,2779.1,2779.0,2.6982]
[1752103244526,4.2938,2779.5,2779.1,0.7194]
[1752103244725,27.8658,2779.5,2779.4,0.71933]
[1752103244926,29.78692037,2779.5,2779.4,0.71933]
[1752103245126,29.15542037,2779.5,2779.4,0.71933]
[1752103245927,29.78692037,2779.5,2779.4,0.71933]
[1752103246630,29.78192037,2779.5,2779.4,0.71933]
[1752103247028,29.15042037,2779.5,2779.4,0.71933]
[1752103247232,29.15042037,2779.5,2779.4,1.36393]
[1752103247630,29.15042037,2779.5,2779.4,2.63963]
[1752103247828,4.49742037,2779.5,2779.4,2.63963]
[1752103248032,29.14642037,2779.5,2779.4,2.63963]
[1752103248733,29.14642037,2779.5,2779.4,9.6168071]
[1752103248734,1.28962037,2779.5,2779.4,9.6168071]
[1752103248930,4.2476,2779.9,2779.8,0.71922]
[1752103249137,6.16987758,2779.9,2779.8,1.36382]
[1752103249427,30.81687758,2779.9,2779.8,1.36382]
[1752103250133,30.81787758,2779.9,2779.8,1.36382]
[1752103250337,27.60707758,2779.9,2779.8,1.36382]
[1752103250533,27.60707758,2779.9,2779.8,0.71922]
[1752103251035,2.96207758,2779.9,2779.8,1.36382]
[1752103251228,26.56427758,2779.9,2779.8,1.36382]
[1752103251433,1.92227758,2779.9,2779.8,1.36382]
[1752103251635,1.29077758,2779.9,2779.8,3.3409971]
[1752103252232,3.2078,2780.3,2780.2,0.71912]
[1752103252437,27.8678,2780.3,2780.2,1.36372]
[1752103252935,28.4993,2780.3,2780.2,1.36372]
[1752103253233,28.4983,2780.3,2780.2,1.36372]
[1752103253834,28.4983,2780.3,2780.2,0.71912]
[1752103254040,28.4963,2780.3,2780.2,1.36372]
[1752103254734,29.3999,2780.3,2780.2,1.36372]
[1752103255135,28.4963,2780.3,2780.2,1.36372]
[1752103255536,29.21539,2780.3,2780.2,1.36372]
[1752103255935,28.4963,2780.3,2780.2,1.36372]
[1752103256336,26.00759,2780.3,2780.2,1.36372]
[1752103256538,26.91119,2780.3,2780.2,1.36372]
[1752103256737,0.71914,2780.2,2780.1,0.71912]
[1752103256935,2.3528171,2780.2,2780.1,0.71912]
[1752103257135,4.5556171,2780.2,2780.1,0.71912]
[1752103260146,3.55344,2780.2,2780.1,0.71912]
[1752103260342,4.5556171,2780.2,2780.1,0.71912]
[1752103261350,2.3528171,2780.2,2780.1,0.71912]
[1752103261646,1.6336771,2780.2,2780.1,1.36372]
[1752103261844,25.2705,2780.2,2780.1,1.36372]
[1752103262044,25.98962,2780.2,2780.1,1.36372]
[1752103263747,26.9917971,2780.2,2780.1,1.36372]
[1752103264347,27.8953971,2780.2,2780.1,1.36372]
[1752103264850,27.8953971,2780.2,2780.1,0.71912]
[1752103265043,4.5002971,2780.2,2780.1,0.71912]
[1752103265246,29.1232971,2780.2,2780.1,0.71912]
[1752103265451,0.71922,2779.9,2779.8,0.71919]
[1752103265650,27.8794971,2779.9,2779.8,0.71919]
[1752103266052,27.8794971,2779.9,2779.7,0.71924]
[1752103266053,0.71925,2779.8,2779.7,0.71924]
[1752103266249,1.35075,2779.8,2779.7,0.71924]
[1752103266445,2.25435,2779.8,2779.7,0.71924]
[1752103266654,0.71929,2779.7,2779.6,0.71925]
[1752103266854,29.3325671,2779.7,2779.6,0.71925]
[1752103267049,30.2361671,2779.7,2779.6,0.71925]
[1752103267652,30.2361671,2779.7,2779.6,1.36385]
[1752103267951,30.2361671,2779.7,2779.6,0.71925]
[1752103268149,0.71932,2779.5,2779.4,0.71929]
[1752103268453,26.9769871,2779.5,2779.4,0.71933]
[1752103268652,26.9769871,2779.5,2779.4,1.36393]
[1752103268854,26.9769871,2779.5,2779.4,0.71933]
[1752103269255,26.9769871,2779.5,2779.4,1.35713]
[1752103269649,27.9423871,2779.5,2779.4,0.6378]
[1752103269855,0.71938,2779.3,2779.2,0.71935]
[1752103270154,27.9506571,2779.3,2779.2,1.35715]
[1752103270354,27.9506571,2779.3,2779.2,0.71935]
[1752103270855,27.9506571,2779.3,2779.2,1.35715]
[1752103271559,27.2312771,2779.3,2779.2,1.35715]
[1752103271953,28.2495771,2779.3,2779.2,1.35715]
[1752103273054,28.9689271,2779.3,2779.2,1.35715]
[1752103273263,30.2463271,2779.3,2779.2,1.35715]
[1752103273662,29.5269771,2779.3,2779.2,1.35715]
[1752103274362,30.2463271,2779.3,2779.2,1.35715]
[1752103274762,29.5269771,2779.3,2779.2,0.71935]
[1752103275664,29.5269771,2779.3,2779.2,1.35715]
[1752103275855,29.5269771,2779.3,2779.2,0.71935]
[1752103276261,29.5269771,2779.3,2779.2,1.35715]
[1752103276561,27.2841771,2779.3,2779.2,1.35715]
[1752103276761,26.278,2779.3,2779.2,1.35715]
[1752103279158,3.6265771,2779.3,2779.2,1.35715]
[1752103279364,28.2465771,2779.3,2779.2,1.35715]
[1752103279865,28.9659271,2779.3,2779.2,1.35715]
[1752103280064,28.2465771,2779.3,2779.2,1.35715]
[1752103281568,27.2811771,2779.3,2779.2,1.35715]
[1752103281865,26.279,2779.3,2779.2,1.35715]
[1752103282469,24.62,2779.3,2779.2,1.35715]
[1752103282667,25.2607,2779.3,2779.2,1.35715]
[1752103283265,3.2078,2779.6,2779.5,0.7193]
[1752103283467,29.73894958,2779.6,2779.5,1.3571]
[1752103283658,29.4184,2779.6,2779.5,1.3571]
[1752103283862,6.48307,2779.6,2779.5,1.3571]
[1752103284067,31.10307,2779.6,2779.5,1.3571]
[1752103284366,32.37357156,2779.6,2779.5,1.3571]
[1752103285770,31.65430156,2779.6,2779.5,1.3571]
[1752103287167,7.03430156,2779.6,2779.5,1.3571]
[1752103287367,31.65430156,2779.6,2779.5,1.3571]
[1752103287972,31.10307,2779.6,2779.5,1.3571]
[1752103288569,29.4184,2779.6,2779.5,1.3571]
[1752103288766,4.7984,2779.6,2779.5,1.3571]
[1752103288971,27.8278,2779.6,2779.5,1.3571]
[1752103289171,28.4685,2779.6,2779.5,1.3571]
[1752103290474,29.445,2779.6,2779.5,1.3571]
[1752103291175,4.825,2779.6,2779.5,1.3571]
[1752103291372,3.2078,2779.6,2779.5,1.3571]
[1752103291571,28.4675,2779.6,2779.5,1.3571]
[1752103293472,0.6407,2779.6,2779.5,1.3571]
[1752103293680,1.7213571,2780.0,2779.9,0.7192]
[1752103293875,26.9810571,2780.0,2779.9,1.357]
[1752103294176,0.6407,2780.0,2779.9,1.357]
[1752103294376,2.0025771,2780.2,2780.1,0.71914]
[1752103294678,28.2276771,2780.2,2780.1,0.71914]
[1752103294979,28.2276771,2780.2,2780.1,1.35694]
[1752103295478,2.0025771,2780.2,2780.1,1.35694]
[1752103295674,3.2078,2780.3,2780.2,0.71912]
[1752103295872,28.4665,2780.3,2780.2,1.35692]
[1752103296177,3.8485,2780.3,2780.2,1.35692]
[1752103296377,28.4665,2780.3,2780.2,1.35692]
[1752103296876,3.8485,2780.3,2780.2,1.35692]
[1752103297079,28.4655,2780.3,2780.2,1.35692]
[1752103297474,30.17199,2780.3,2780.2,1.35692]
[1752103297680,31.39949,2780.3,2780.2,0.71912]
[1752103298478,30.6804,2780.3,2780.2,1.35692]
[1752103298678,30.6804,2780.3,2780.2,0.71912]
[1752103298876,30.6804,2780.3,2780.2,1.35692]
[1752103299074,31.39949,2780.3,2780.2,1.35692]
[1752103299470,0.71918,2780.1,2780.0,0.71915]
[1752103299679,27.9578571,2780.1,2780.0,0.71915]
[1752103300178,27.9578571,2780.1,2780.0,1.35815]
[1752103300480,27.2386771,2780.1,2780.0,0.71915]
[1752103300779,26.9704171,2780.1,2780.0,1.35815]
[1752103301178,26.2512771,2780.1,2780.0,1.35815]
[1752103301774,2.6216771,2780.1,2780.0,1.35815]
[1752103301982,1.0021771,2780.3,2780.2,0.71912]
[1752103302182,26.2492771,2780.3,2780.2,0.71912]
[1752103302481,29.1731771,2780.3,2780.2,0.71912]
[1752103304577,3.2078,2780.6,2780.5,0.71904]
[1752103304783,25.2461,2780.6,2780.5,1.35804]
[1752103305481,25.2461,2780.6,2780.5,0.71904]
[1752103305881,25.2461,2780.6,2780.5,1.35804]
[1752103308085,0.6321,2780.6,2780.5,1.35804]
[1752103308285,25.2521,2780.6,2780.5,1.35804]
[1752103309478,25.97112,2780.6,2780.5,1.35804]
[1752103310185,25.2521,2780.6,2780.5,1.35804]
[1752103310384,25.97112,2780.6,2780.5,1.35804]
[1752103311485,26.95852,2780.6,2780.5,1.35804]
[1752103313289,26.94952,2780.6,2780.5,1.35804]
[1752103313489,26.94952,2780.6,2780.0,1.2238]
[1752103313490,0.71918,2780.1,2779.8,5.00583]
[1752103313688,2.3534771,2779.9,2779.8,1.35822]
[1752103313882,2.3534771,2779.9,2779.8,0.71922]
[1752103314087,3.9276771,2779.9,2779.6,0.8977]
[1752103314288,0.71935,2779.4,2779.3,0.71934]
[1752103314586,0.71935,2779.4,2778.9,1.61714]
[1752103314587,0.71943,2779.0,2778.9,1.61714]
[1752103314893,26.9667071,2779.0,2778.9,1.35844]
[1752103315090,26.9667071,2779.0,2778.9,0.639]
[1752103315292,0.71949,2778.8,2778.7,0.71949]
[1752103315486,26.2602771,2778.8,2778.7,1.35849]
[1752103316491,24.628,2779.0,2778.7,0.639]
[1752103316693,24.628,2779.0,2778.9,0.71945]
[1752103316992,25.2601,2779.0,2778.9,0.71945]
[1752103317192,25.2601,2779.0,2778.9,1.35845]
[1752103317391,0.6321,2779.0,2778.9,1.35845]
[1752103317586,1.0021771,2779.2,2778.9,0.639]
[1752103317787,1.0021771,2779.2,2779.1,0.7194]
[1752103317986,26.9926571,2779.2,2779.1,1.3584]
[1752103318388,3.2078,2779.3,2779.2,0.71938]
[1752103318588,27.8438,2779.3,2779.2,1.35838]
[1752103318892,1.0021771,2779.4,2779.2,1.35838]
[1752103318893,24.636,2779.4,2779.3,0.71935]
[1752103319088,24.636,2779.4,2779.3,1.35835]
[1752103319288,25.2681,2779.4,2779.3,1.35835]
[1752103320092,25.2741,2779.4,2779.3,1.35835]
[1752103321691,25.2741,2779.4,2779.3,0.71935]
[1752103322093,26.98083,2779.4,2779.3,0.71935]
[1752103322294,28.29553,2779.4,2779.3,0.71935]
[1752103322592,26.5888,2779.4,2779.3,0.71935]
[1752103322798,28.29553,2779.4,2779.3,0.71935]
[1752103323096,28.29553,2779.4,2779.3,1.35835]
[1752103323298,27.5762,2779.4,2779.3,1.35835]
[1752103323494,28.29553,2779.4,2779.3,1.35835]
[1752103323700,26.2615,2779.4,2779.3,1.35835]
[1752103324198,25.2741,2779.4,2779.3,1.35835]
[1752103324894,25.99343,2779.4,2779.3,1.35835]
[1752103325800,0.71926,2779.7,2779.6,0.71927]
[1752103326001,25.99136,2779.7,2779.6,0.71927]
[1752103326294,25.99136,2779.7,2779.6,0.639]
[1752103326501,0.71927,2779.6,2779.5,0.71928]
[1752103326702,4.6596471,2779.6,2779.5,0.71928]
[1752103326896,5.6470471,2779.6,2779.5,0.71928]
[1752103327404,4.9277771,2779.6,2779.5,0.71928]
[1752103327796,4.9277771,2779.6,2779.5,1.35828]
[1752103327991,4.9277771,2779.6,2779.5,0.71928]
[1752103328197,4.9277771,2779.6,2779.5,1.35828]
[1752103328402,4.9277771,2779.6,2779.5,0.71928]
[1752103328798,4.9277771,2779.6,2779.5,1.35828]
[1752103333005,3.5913771,2779.6,2779.5,1.35828]
[1752103333708,2.5892,2779.6,2779.5,1.35828]
[1752103333909,1.7213271,2780.1,2779.5,1.6399]
[1752103334209,2.6686271,2780.1,2780.0,0.71917]
[1752103334407,27.9075271,2780.1,2780.0,0.71917]
[1752103334608,1.79793,2780.0,2779.2,3.2078]
[1752103334806,0.7193,2779.6,2779.5,0.71927]
[1752103335009,25.9582,2779.6,2779.5,0.71927]
[1752103335206,26.9055,2779.6,2779.5,0.71927]
[1752103335908,29.1667771,2779.6,2779.5,0.71927]
[1752103339409,29.1667771,2779.6,2779.5,1.38507]
[1752103340107,24.633,2780.1,2779.7,1.79813]
[1752103340309,26.2510771,2780.1,2780.0,0.71914]
[1752103340513,28.4101771,2780.1,2780.0,0.71914]
[1752103340704,28.4101771,2780.1,2780.0,1.38494]
[1752103341114,3.7771771,2780.1,2780.0,1.38494]
[1752103341308,4.1386,2780.2,2780.1,0.71914]
[1752103341508,29.3915,2780.2,2780.1,1.38494]
[1752103341908,26.1807,2780.2,2780.1,1.38494]
[1752103342209,1.5467,2780.2,2780.1,0.71914]
[1752103342408,27.127,2780.2,2780.1,0.71914]
[1752103342807,27.127,2780.2,2779.8,3.2078]
[1752103343008,1.0021771,2779.9,2779.8,3.92702]
[1752103343212,26.2730771,2779.9,2779.8,4.59282]
[1752103343411,26.2730771,2779.9,2779.5,2.13340234]
[1752103343412,27.2203771,2779.9,2779.5,2.13340234]
[1752103343710,27.2203771,2779.9,2779.4,3.2078]
[1752103343711,0.7193,2779.5,2779.4,0.7193]
[1752103344013,25.3823,2779.5,2779.4,1.3851]
[1752103344313,25.6359,2779.5,2779.4,1.3851]
[1752103345511,26.8742,2779.5,2779.4,1.3851]
[1752103345807,25.6359,2779.5,2779.4,1.3851]
[1752103346411,0.9729,2779.5,2779.4,1.3851]
[1752103346612,25.6339,2779.5,2779.4,1.3851]
[1752103347112,26.2498,2779.5,2779.4,1.3851]
[1752103347313,26.2498,2779.5,2779.2,3.09570234]
[1752103347508,1.5888,2779.5,2779.4,1.38513]
[1752103347709,26.2438,2779.5,2779.4,1.38513]
[1752103348314,25.6279,2779.5,2779.4,1.38513]
[1752103348512,26.2438,2779.5,2779.4,1.38513]
[1752103350715,1.7213971,2779.8,2779.5,1.79823]
[1752103350920,27.3167271,2779.7,2779.6,0.71927]
[1752103351218,29.2557471,2779.7,2779.6,0.71927]
[1752103351819,0.71932,2779.5,2779.2,4.89409234]
[1752103352017,0.6159,2779.3,2779.2,4.48088234]
[1752103352218,0.6159,2779.3,2779.2,3.81508234]
[1752103352410,0.6159,2779.3,2779.2,4.48088234]
[1752103352916,1.5632,2779.3,2779.2,2.34748]
[1752103353121,1.5632,2779.3,2779.2,1.68168]
[1752103353316,0.6159,2779.3,2779.2,1.68168]
[1752103353814,0.6159,2779.3,2779.2,2.34748]
[1752103354016,1.5632,2779.3,2779.2,1.38518]
[1752103354215,2.28255,2779.3,2779.2,0.71938]
[1752103354410,0.6159,2779.3,2779.2,0.71938]
[1752103354913,0.6159,2779.3,2779.2,1.38518]
[1752103355516,25.2659,2779.3,2779.2,1.38518]
[1752103356319,25.2649,2779.3,2779.2,1.38518]
[1752103357816,24.648,2779.3,2779.2,1.38518]
[1752103358022,0.6159,2779.3,2779.2,1.38518]
[1752103358217,27.3297871,2779.5,2779.4,0.71933]
[1752103358417,27.9456871,2779.5,2779.4,0.71933]
[1752103358915,27.9456871,2779.5,2779.4,1.38513]
[1752103359123,27.2263771,2779.5,2779.4,0.71933]
[1752103359312,27.9456771,2779.5,2779.4,1.34723]
[1752103359818,27.9456771,2779.5,2779.4,0.71933]
[1752103360720,27.2263771,2779.5,2779.4,0.71933]
[1752103361120,27.2263771,2779.5,2779.4,1.34723]
[1752103361315,27.2263771,2779.5,2779.4,0.71933]
[1752103361719,26.2610771,2779.5,2779.4,1.34723]
[1752103362925,25.2589,2779.5,2779.4,1.34723]
[1752103365828,1.0021771,2779.7,2779.6,0.71927]
[1752103366031,26.2538771,2779.7,2779.6,0.71927]
[1752103366231,26.2538771,2779.7,2779.6,1.34717]
[1752103367130,0.6187,2779.7,2779.6,1.34717]
[1752103367329,4.5139,2780.0,2779.6,1.34717]
[1752103367330,3.2078,2780.0,2779.9,0.7192]
[1752103367528,30.3271,2780.0,2779.9,1.3471]
[1752103367932,30.3271,2780.0,2779.9,0.7192]
[1752103368129,30.3271,2780.0,2779.9,1.3471]
[1752103369233,2.4853,2780.0,2779.9,1.3471]
[1752103369432,27.1173,2780.0,2779.9,1.3471]
[1752103370030,26.148,2780.0,2779.9,1.3471]
[1752103370427,27.83247,2780.0,2779.9,0.7192]
[1752103370629,0.71924,2779.8,2779.7,0.71922]
[1752103370833,27.9364171,2779.8,2779.7,0.71922]
[1752103371034,0.71932,2779.5,2779.4,0.71929]
[1752103371236,26.9691971,2779.5,2779.4,0.71929]
[1752103371430,27.9344771,2779.5,2779.4,0.71929]
[1752103372135,29.1573771,2779.5,2779.4,0.71929]
[1752103373133,0.71933,2779.4,2779.3,2.13340234]
[1752103373335,0.71935,2779.3,2779.2,2.13340234]
[1752103373537,25.6381771,2779.3,2779.2,0.71936]
[1752103373733,26.8935771,2779.3,2779.2,0.71936]
[1752103373935,27.6129471,2779.3,2779.2,0.71936]
[1752103374838,24.636,2779.3,2779.2,1.34726]
[1752103375028,24.636,2779.3,2779.2,0.71936]
[1752103375233,24.636,2779.3,2779.2,1.34726]
[1752103376137,25.6381771,2779.3,2779.2,1.34726]
[1752103377539,26.22,2779.5,2779.4,0.71933]
[1752103377737,24.636,2779.5,2779.4,3.92713]
[1752103378236,1.9674771,2779.9,2779.8,0.71922]
[1752103378435,28.1450771,2779.9,2779.8,0.71922]
[1752103378636,28.8642871,2779.9,2779.8,1.34712]
[1752103379135,1.5406,2779.9,2779.8,1.34712]
[1752103379337,0.71923,2779.8,2779.7,0.71923]
[1752103379633,1.0021771,2779.8,2779.7,1.34713]
[1752103379838,25.6451771,2779.8,2779.7,1.34713]
[1752103380038,25.6451771,2779.8,2779.7,4.55493]
[1752103380640,25.2647,2779.9,2779.8,0.71922]
[1752103381139,25.9839,2779.9,2779.8,0.71922]
[1752103381442,27.2507,2779.9,2779.8,0.71922]
[1752103381937,28.183,2779.9,2779.8,0.71922]
[1752103382137,28.183,2779.9,2779.8,1.34712]
[1752103382638,27.4638,2779.9,2779.8,1.34712]
[1752103382837,26.205,2779.9,2779.8,1.34712]
[1752103383341,26.205,2779.9,2779.8,0.71922]
[1752103383539,26.205,2779.9,2779.8,1.34712]
[1752103385936,55.7953771,2780.3,2780.2,0.71912]
[1752103386141,80.4403771,2780.3,2780.2,0.71912]
[1752103386539,79.7212771,2780.3,2780.2,0.71912]
[1752103387440,2.2491,2780.3,2780.2,0.71912]
[1752103387635,27.2361771,2780.3,2780.2,0.71912]
[1752103387836,27.9552671,2780.3,2780.2,0.71912]
[1752103388141,29.1951871,2780.3,2780.2,0.71912]
[1752103389040,1.79787,2780.1,2779.4,6.40273129]
[1752103389341,1.0021771,2779.7,2779.6,0.71928]
[1752103389542,25.6631771,2779.7,2779.6,1.32348]
[1752103389742,0.71932,2779.5,2779.4,0.71931]
[1752103389936,26.3864971,2779.5,2779.4,0.71931]
[1752103390336,27.6263971,2779.5,2779.4,0.71931]
[1752103390837,3.2078,2780.1,2779.4,0.6042]
[1752103391038,1.7214271,2779.8,2779.7,0.71923]
[1752103391238,26.3884271,2779.8,2779.7,0.71923]
[1752103391744,26.3904271,2779.8,2779.7,0.71923]
[1752103392342,24.669,2779.8,2779.7,0.71923]
[1752103392742,26.03512,2779.8,2779.7,0.71923]
[1752103393043,26.03512,2779.8,2779.7,1.32343]
[1752103393234,25.3159,2779.8,2779.7,1.32343]
[1752103394143,26.03512,2779.8,2779.7,1.32343]
[1752103394648,27.9733971,2779.8,2779.7,0.6042]
[1752103394845,27.9733971,2779.8,2779.7,1.32345]
[1752103395241,27.9733971,2779.8,2779.7,0.6042]
[1752103395843,27.2541771,2779.8,2779.7,1.32345]
[1752103396043,2.5851771,2779.8,2779.7,1.32345]
[1752103396247,26.3120771,2779.8,2779.7,1.32345]
[1752103396643,27.0312971,2779.8,2779.7,1.32345]